[Event "Late-Titled-Tuesday-Blitz-June-25-2024"]
[Site "Chess.com"]
[Date "2024.06.25"]
[Round "3"]
[White "chessdoll90"]
[Black "carloseduar100"]
[Result "1-0"]
[WhiteElo "2508"]
[BlackElo "2285"]
[TimeControl "180+1"]
[EndTime "14:26:37 PDT"]
[Termination "chessdoll90 won by checkmate"]

1. d4 {[%clk 0:03:00.9]} 1... d5 {[%clk 0:02:59.6]} 2. c4 {[%clk 0:02:58.9]}
2... e5 {[%clk 0:02:59.6]} 3. dxe5 {[%clk 0:02:49.2]} 3... d4 {[%clk 0:02:59.6]}
4. Nf3 {[%clk 0:02:48.6]} 4... Nc6 {[%clk 0:02:58.4]} 5. g3 {[%clk 0:02:47.1]}
5... Nge7 {[%clk 0:02:58.3]} 6. Bg2 {[%clk 0:02:26.1]} 6... Ng6 {[%clk 0:02:57]}
7. O-O {[%clk 0:02:25.1]} 7... Ngxe5 {[%clk 0:02:56.9]} 8. b3 {[%clk 0:02:24.3]}
8... Bf5 {[%clk 0:02:51.4]} 9. Nbd2 {[%clk 0:02:20.9]} 9... Nxf3+ {[%clk
0:02:42.9]} 10. Nxf3 {[%clk 0:02:20.3]} 10... Qd7 {[%clk 0:02:43]} 11. Bb2
{[%clk 0:02:03.8]} 11... O-O-O {[%clk 0:02:42.9]} 12. a3 {[%clk 0:02:00.8]}
12... h5 {[%clk 0:02:42.4]} 13. h4 {[%clk 0:01:56.5]} 13... f6 {[%clk
0:02:42.1]} 14. b4 {[%clk 0:01:56.2]} 14... d3 {[%clk 0:02:42.1]} 15. e3 {[%clk
0:01:38]} 15... Bd6 {[%clk 0:02:35.6]} 16. c5 {[%clk 0:01:30.5]} 16... Be5
{[%clk 0:02:35.6]} 17. Nxe5 {[%clk 0:01:09.7]} 17... Nxe5 {[%clk 0:02:34.5]} 18.
c6 {[%clk 0:01:07.1]} 18... Qe6 {[%clk 0:02:28.6]} 19. cxb7+ {[%clk 0:01:04.7]}
19... Kb8 {[%clk 0:02:26.7]} 20. Bd4 {[%clk 0:00:52.8]} 20... Bg4 {[%clk
0:02:17.2]} 21. Qa4 {[%clk 0:00:44.3]} 21... a6 {[%clk 0:02:12.2]} 22. b5 {[%clk
0:00:43.6]} 22... Nf3+ {[%clk 0:02:00]} 23. Bxf3 {[%clk 0:00:31.1]} 23... Bxf3
{[%clk 0:02:00.9]} 24. Qxa6 {[%clk 0:00:18.4]} 24... Qxa6 {[%clk 0:01:54.5]} 25.
bxa6 {[%clk 0:00:19.3]} 25... Rxd4 {[%clk 0:01:45.9]} 26. exd4 {[%clk
0:00:20.2]} 26... d2 {[%clk 0:01:45.8]} 27. Rfd1 {[%clk 0:00:19.7]} 27... Bxd1
{[%clk 0:01:41.7]} 28. Rxd1 {[%clk 0:00:20.6]} 28... Ka7 {[%clk 0:01:42.3]} 29.
Rxd2 {[%clk 0:00:20.2]} 29... Kxa6 {[%clk 0:01:42.6]} 30. Rb2 {[%clk 0:00:20.2]}
30... Rb8 {[%clk 0:01:42.2]} 31. Kf1 {[%clk 0:00:19.4]} 31... Rxb7 {[%clk
0:01:38.7]} 32. Rxb7 {[%clk 0:00:18.7]} 32... Kxb7 {[%clk 0:01:39.6]} 33. Ke2
{[%clk 0:00:18.9]} 33... Kc6 {[%clk 0:01:40.3]} 34. Kd3 {[%clk 0:00:18.9]} 34...
g5 {[%clk 0:01:39.8]} 35. f3 {[%clk 0:00:17.9]} 35... gxh4 {[%clk 0:01:35.5]}
36. gxh4 {[%clk 0:00:17.5]} 36... f5 {[%clk 0:01:36.2]} 37. Kc4 {[%clk
0:00:17.3]} 37... Kb6 {[%clk 0:01:36.5]} 38. d5 {[%clk 0:00:17.2]} 38... c6
{[%clk 0:01:34.9]} 39. d6 {[%clk 0:00:16.9]} 39... c5 {[%clk 0:01:31.5]} 40. a4
{[%clk 0:00:15.6]} 40... Kc6 {[%clk 0:01:31.7]} 41. d7 {[%clk 0:00:15.9]} 41...
Kxd7 {[%clk 0:01:31.8]} 42. Kxc5 {[%clk 0:00:16.8]} 42... Ke6 {[%clk 0:01:32.6]}
43. f4 {[%clk 0:00:15.9]} 43... Kd7 {[%clk 0:01:32]} 44. Kd5 {[%clk 0:00:15.1]}
44... Kc7 {[%clk 0:01:32.4]} 45. Ke5 {[%clk 0:00:15.4]} 45... Kb6 {[%clk
0:01:32.9]} 46. Kxf5 {[%clk 0:00:15.7]} 46... Ka5 {[%clk 0:01:33.8]} 47. Kg6
{[%clk 0:00:15.6]} 47... Kxa4 {[%clk 0:01:34.7]} 48. f5 {[%clk 0:00:16.2]} 48...
Kb5 {[%clk 0:01:35.6]} 49. f6 {[%clk 0:00:16.6]} 49... Kc5 {[%clk 0:01:36.5]}
50. f7 {[%clk 0:00:17.1]} 50... Kd5 {[%clk 0:01:37.4]} 51. f8=Q {[%clk
0:00:17.3]} 51... Ke5 {[%clk 0:01:38.3]} 52. Qf5+ {[%clk 0:00:17.4]} 52... Kd4
{[%clk 0:01:38.5]} 53. Kxh5 {[%clk 0:00:17.7]} 53... Ke3 {[%clk 0:01:38.8]} 54.
Kg5 {[%clk 0:00:18.1]} 54... Kd4 {[%clk 0:01:38.7]} 55. h5 {[%clk 0:00:19]}
55... Ke3 {[%clk 0:01:39.4]} 56. h6 {[%clk 0:00:19.9]} 56... Kd4 {[%clk
0:01:40.3]} 57. h7 {[%clk 0:00:20.7]} 57... Ke3 {[%clk 0:01:41.2]} 58. h8=Q
{[%clk 0:00:21.1]} 58... Ke2 {[%clk 0:01:42.1]} 59. Qhh3 {[%clk 0:00:21.1]}
59... Kd2 {[%clk 0:01:42.4]} 60. Qf2+ {[%clk 0:00:21.1]} 60... Kd1 {[%clk
0:01:43.2]} 61. Qhf1# {[%clk 0:00:21.9]} 1-0

[Event "Late-Titled-Tuesday-Blitz-June-25-2024"]
[Site "Chess.com"]
[Date "2024.06.25"]
[Round "3"]
[White "TreinadorBR"]
[Black "ExchangeAB"]
[Result "0-1"]
[WhiteElo "2269"]
[BlackElo "2549"]
[TimeControl "180+1"]
[EndTime "14:26:38 PDT"]
[Termination "ExchangeAB won by resignation"]

1. e4 {[%clk 0:02:56]} 1... c6 {[%clk 0:03:00.4]} 2. d4 {[%clk 0:02:55.6]} 2...
d5 {[%clk 0:03:01.1]} 3. exd5 {[%clk 0:02:56.5]} 3... cxd5 {[%clk 0:03:01.2]} 4.
Bd3 {[%clk 0:02:57.2]} 4... Nf6 {[%clk 0:03:02.1]} 5. h3 {[%clk 0:02:57.7]} 5...
Nc6 {[%clk 0:03:02.7]} 6. c3 {[%clk 0:02:58.4]} 6... g6 {[%clk 0:03:03.5]} 7.
Nf3 {[%clk 0:02:58.6]} 7... Bf5 {[%clk 0:03:04.2]} 8. Bxf5 {[%clk 0:02:59.2]}
8... gxf5 {[%clk 0:03:05.1]} 9. O-O {[%clk 0:02:59.4]} 9... e6 {[%clk
0:03:05.6]} 10. Re1 {[%clk 0:02:59.2]} 10... Bg7 {[%clk 0:03:03.8]} 11. Bg5
{[%clk 0:02:57.6]} 11... O-O {[%clk 0:03:04.1]} 12. Ne5 {[%clk 0:02:57.5]} 12...
Qc7 {[%clk 0:03:03.3]} 13. Nd2 {[%clk 0:02:54.2]} 13... Nxe5 {[%clk 0:03:02]}
14. dxe5 {[%clk 0:02:48.1]} 14... Ne4 {[%clk 0:02:59.7]} 15. Nxe4 {[%clk
0:02:48.2]} 15... dxe4 {[%clk 0:02:59.2]} 16. f3 {[%clk 0:02:41.5]} 16... Qxe5
{[%clk 0:02:54.7]} 17. fxe4 {[%clk 0:02:41.3]} 17... fxe4 {[%clk 0:02:53.9]} 18.
Be3 {[%clk 0:02:41.1]} 18... f5 {[%clk 0:02:46.9]} 19. Qh5 {[%clk 0:02:39.9]}
19... Qg3 {[%clk 0:02:16.6]} 20. Bf2 {[%clk 0:02:32.4]} 20... Qg6 {[%clk
0:02:16.3]} 21. Qh4 {[%clk 0:02:27.2]} 21... Bf6 {[%clk 0:02:14.3]} 22. Qf4
{[%clk 0:02:24.3]} 22... e5 {[%clk 0:02:12.2]} 23. Qe3 {[%clk 0:02:21]} 23...
Rfd8 {[%clk 0:02:07.8]} 24. Rad1 {[%clk 0:02:20.2]} 24... a6 {[%clk 0:02:02.7]}
25. Qb6 {[%clk 0:02:15.6]} 25... f4 {[%clk 0:01:55.4]} 26. Bc5 {[%clk
0:01:49.9]} 26... f3 {[%clk 0:01:52.7]} 27. g4 {[%clk 0:01:47.6]} 27... Bh4
{[%clk 0:01:41.2]} 28. Qxg6+ {[%clk 0:01:37.1]} 28... hxg6 {[%clk 0:01:42.1]}
29. Bf2 {[%clk 0:01:19.8]} 29... Rxd1 {[%clk 0:01:13.1]} 30. Rxd1 {[%clk
0:01:18.9]} 30... Rd8 {[%clk 0:01:13.8]} 31. Rxd8+ {[%clk 0:01:13.7]} 31... Bxd8
{[%clk 0:01:14.7]} 32. h4 {[%clk 0:01:01.7]} 32... e3 {[%clk 0:01:09.1]} 33.
Bxe3 {[%clk 0:01:00.9]} 33... Bxh4 {[%clk 0:01:09.6]} 34. Kh2 {[%clk 0:00:55.5]}
34... Kf7 {[%clk 0:01:08.1]} 35. Kh3 {[%clk 0:00:55.6]} 35... Be1 {[%clk
0:01:07.7]} 36. c4 {[%clk 0:00:50.1]} 36... e4 {[%clk 0:01:06.6]} 37. Kh2 {[%clk
0:00:48.8]} 37... Ke6 {[%clk 0:01:05.8]} 38. Kg1 {[%clk 0:00:48.3]} 38... Ke5
{[%clk 0:01:02.6]} 39. Kf1 {[%clk 0:00:48.1]} 39... Bg3 {[%clk 0:01:02.5]} 40.
b4 {[%clk 0:00:45.8]} 40... Bf4 {[%clk 0:01:02.1]} 41. Ba7 {[%clk 0:00:43.7]}
41... e3 {[%clk 0:01:00.7]} 42. c5 {[%clk 0:00:31.6]} 42... Ke4 {[%clk
0:01:00.4]} 43. a4 {[%clk 0:00:27.9]} 43... e2+ {[%clk 0:00:59.2]} 44. Kf2
{[%clk 0:00:27.4]} 44... Bg3+ {[%clk 0:00:57.2]} 0-1

[Event "Late-Titled-Tuesday-Blitz-June-25-2024"]
[Site "Chess.com"]
[Date "2024.06.25"]
[Round "3"]
[White "klercaku"]
[Black "rdarruda"]
[Result "1/2-1/2"]
[WhiteElo "2315"]
[BlackElo "2551"]
[TimeControl "180+1"]
[EndTime "14:26:40 PDT"]
[Termination "Game drawn by repetition"]

1. e4 {[%clk 0:03:00.9]} 1... c5 {[%clk 0:02:36.2]} 2. Nf3 {[%clk 0:03:00.2]}
2... Nc6 {[%clk 0:02:35.5]} 3. d4 {[%clk 0:03:00.5]} 3... cxd4 {[%clk
0:02:34.9]} 4. Nxd4 {[%clk 0:03:01.3]} 4... e5 {[%clk 0:02:35.1]} 5. Nb5 {[%clk
0:02:59.8]} 5... a6 {[%clk 0:02:34.6]} 6. Nd6+ {[%clk 0:02:59.2]} 6... Bxd6
{[%clk 0:02:34.9]} 7. Qxd6 {[%clk 0:02:59.8]} 7... Qe7 {[%clk 0:02:35.5]} 8.
Qxe7+ {[%clk 0:02:55.4]} 8... Ngxe7 {[%clk 0:02:36.4]} 9. Nc3 {[%clk 0:02:51.8]}
9... Nb4 {[%clk 0:02:36.2]} 10. Bd3 {[%clk 0:02:51.3]} 10... d5 {[%clk
0:02:35.8]} 11. exd5 {[%clk 0:02:49.3]} 11... Bf5 {[%clk 0:02:35.8]} 12. Bxf5
{[%clk 0:02:36.2]} 12... Nxf5 {[%clk 0:02:36.7]} 13. O-O {[%clk 0:02:27.7]}
13... O-O-O {[%clk 0:02:33.8]} 14. Bd2 {[%clk 0:02:07.3]} 14... Nxd5 {[%clk
0:02:32.8]} 15. Nxd5 {[%clk 0:02:06.2]} 15... Rxd5 {[%clk 0:02:33.7]} 16. Bc3
{[%clk 0:02:00.7]} 16... Nd4 {[%clk 0:02:33.5]} 17. Bxd4 {[%clk 0:01:52.7]}
17... Rxd4 {[%clk 0:02:34.4]} 18. Rfe1 {[%clk 0:01:50.6]} 18... f6 {[%clk
0:02:30.6]} 19. Re2 {[%clk 0:01:47.5]} 19... Rhd8 {[%clk 0:02:29.9]} 20. Rae1
{[%clk 0:01:47.8]} 20... Kc7 {[%clk 0:02:26.5]} 21. f3 {[%clk 0:01:47.7]} 21...
Kc6 {[%clk 0:02:26]} 22. Kf2 {[%clk 0:01:46.6]} 22... b5 {[%clk 0:02:26.1]} 23.
Re4 {[%clk 0:01:43]} 23... a5 {[%clk 0:02:18.5]} 24. R4e3 {[%clk 0:01:37.5]}
24... Kc5 {[%clk 0:02:13.7]} 25. Rc3+ {[%clk 0:01:36.6]} 25... Rc4 {[%clk
0:02:13.7]} 26. Rxc4+ {[%clk 0:01:34.1]} 26... Kxc4 {[%clk 0:02:13.3]} 27. Re4+
{[%clk 0:01:34.1]} 27... Kc5 {[%clk 0:02:01.6]} 28. Ke2 {[%clk 0:01:33.3]} 28...
b4 {[%clk 0:02:00.1]} 29. Re3 {[%clk 0:01:24.1]} 29... Rd4 {[%clk 0:01:57.5]}
30. Rd3 {[%clk 0:01:20.8]} 30... Kc4 {[%clk 0:01:52.6]} 31. b3+ {[%clk 0:01:12]}
31... Kc5 {[%clk 0:01:52.3]} 32. c3 {[%clk 0:01:09.3]} 32... Rd5 {[%clk
0:01:40.6]} 33. Rxd5+ {[%clk 0:01:02.3]} 33... Kxd5 {[%clk 0:01:41.5]} 34. c4+
{[%clk 0:00:59.8]} 34... Kd4 {[%clk 0:01:41.3]} 35. Kd2 {[%clk 0:00:59.8]} 35...
f5 {[%clk 0:01:36.6]} 36. Ke2 {[%clk 0:00:59.6]} 36... a4 {[%clk 0:01:31.7]} 37.
Kd2 {[%clk 0:00:51]} 37... a3 {[%clk 0:01:24.8]} 38. Kc2 {[%clk 0:00:50.4]}
38... Kc5 {[%clk 0:01:07.9]} 39. Kd3 {[%clk 0:00:49.9]} 39... Kd6 {[%clk
0:01:07.2]} 40. Ke3 {[%clk 0:00:48.2]} 40... Ke6 {[%clk 0:01:07.2]} 41. Kd3
{[%clk 0:00:47.1]} 41... Kd6 {[%clk 0:01:06.4]} 42. Ke3 {[%clk 0:00:46.2]} 42...
Kc5 {[%clk 0:01:06.6]} 43. g4 {[%clk 0:00:43.5]} 43... g6 {[%clk 0:01:05.8]} 44.
h3 {[%clk 0:00:38.9]} 44... Kd6 {[%clk 0:01:03.6]} 45. Kd3 {[%clk 0:00:31.6]}
45... Kc5 {[%clk 0:01:03.6]} 46. Ke3 {[%clk 0:00:29.6]} 46... Kd6 {[%clk
0:01:03.7]} 47. Kd3 {[%clk 0:00:22.9]} 47... Kc5 {[%clk 0:01:03.7]} 48. Ke3
{[%clk 0:00:22.9]} 1/2-1/2

[Event "Late-Titled-Tuesday-Blitz-June-25-2024"]
[Site "Chess.com"]
[Date "2024.06.25"]
[Round "3"]
[White "anasta10"]
[Black "chess_sharparchitect"]
[Result "1-0"]
[WhiteElo "2629"]
[BlackElo "2337"]
[TimeControl "180+1"]
[EndTime "14:26:43 PDT"]
[Termination "anasta10 won on time"]

1. Nf3 {[%clk 0:03:00.9]} 1... d5 {[%clk 0:02:58.3]} 2. b3 {[%clk 0:03:00.5]}
2... Nf6 {[%clk 0:02:53.8]} 3. Bb2 {[%clk 0:03:00]} 3... c5 {[%clk 0:02:52.1]}
4. e3 {[%clk 0:02:57.1]} 4... e6 {[%clk 0:02:51.4]} 5. c4 {[%clk 0:02:55.8]}
5... Nc6 {[%clk 0:02:47.3]} 6. cxd5 {[%clk 0:02:55.7]} 6... exd5 {[%clk
0:02:34.1]} 7. d4 {[%clk 0:02:54.4]} 7... cxd4 {[%clk 0:02:31.3]} 8. Nxd4 {[%clk
0:02:53.7]} 8... Bb4+ {[%clk 0:02:29.6]} 9. Nc3 {[%clk 0:02:51.5]} 9... Ne4
{[%clk 0:02:16.4]} 10. Rc1 {[%clk 0:02:49.8]} 10... Qf6 {[%clk 0:01:53.9]} 11.
Qf3 {[%clk 0:02:22.8]} 11... Nxc3 {[%clk 0:01:29.2]} 12. Bxc3 {[%clk 0:02:21.3]}
12... Bxc3+ {[%clk 0:01:08.7]} 13. Rxc3 {[%clk 0:02:20.1]} 13... Qxf3 {[%clk
0:01:02.3]} 14. Nxf3 {[%clk 0:02:19.8]} 14... O-O {[%clk 0:00:59.4]} 15. Bb5
{[%clk 0:02:17.8]} 15... Bd7 {[%clk 0:00:53.8]} 16. Kd2 {[%clk 0:02:12.9]} 16...
a6 {[%clk 0:00:49.7]} 17. Bxc6 {[%clk 0:02:12.4]} 17... bxc6 {[%clk 0:00:49.3]}
18. Ne5 {[%clk 0:02:11.1]} 18... Bf5 {[%clk 0:00:34]} 19. Nxc6 {[%clk
0:02:09.7]} 19... Rfe8 {[%clk 0:00:32]} 20. Rhc1 {[%clk 0:02:07]} 20... f6
{[%clk 0:00:31]} 21. Nd4 {[%clk 0:02:04.6]} 21... Be4 {[%clk 0:00:30.6]} 22. f3
{[%clk 0:02:04.2]} 22... Bg6 {[%clk 0:00:30.5]} 23. Rc7 {[%clk 0:02:04]} 23...
h5 {[%clk 0:00:27]} 24. Rb7 {[%clk 0:01:59.8]} 24... Rf8 {[%clk 0:00:26.9]} 25.
Rcc7 {[%clk 0:01:59.2]} 25... Rf7 {[%clk 0:00:27.3]} 26. Rxf7 {[%clk 0:01:40.1]}
26... Bxf7 {[%clk 0:00:28.2]} 27. b4 {[%clk 0:01:35.9]} 27... Kf8 {[%clk
0:00:20.3]} 28. a4 {[%clk 0:01:35.3]} 28... Re8 {[%clk 0:00:17.9]} 29. Ra7
{[%clk 0:01:21.1]} 29... Rb8 {[%clk 0:00:15.7]} 30. Kc3 {[%clk 0:01:15.5]} 30...
Rb6 {[%clk 0:00:12.3]} 31. a5 {[%clk 0:01:07.9]} 31... Rd6 {[%clk 0:00:10.7]}
32. Rb7 {[%clk 0:01:07]} 32... Be8 {[%clk 0:00:08.4]} 33. Rb6 {[%clk 0:01:03.8]}
33... Rd7 {[%clk 0:00:01.9]} 34. Rxa6 {[%clk 0:01:03.7]} 34... Rc7+ {[%clk
0:00:02.4]} 35. Kd2 {[%clk 0:01:03.7]} 35... Rc4 {[%clk 0:00:02]} 36. Rb6 {[%clk
0:01:02.1]} 36... Ke7 {[%clk 0:00:01]} 37. a6 {[%clk 0:01:01.3]} 1-0

[Event "Late-Titled-Tuesday-Blitz-June-25-2024"]
[Site "Chess.com"]
[Date "2024.06.25"]
[Round "3"]
[White "Bykov_Egor"]
[Black "Quattroporte300"]
[Result "1-0"]
[WhiteElo "2619"]
[BlackElo "2426"]
[TimeControl "180+1"]
[EndTime "14:26:48 PDT"]
[Termination "Bykov_Egor won by resignation"]

1. Nf3 {[%clk 0:02:59.9]} 1... c5 {[%clk 0:02:59.6]} 2. e3 {[%clk 0:02:59.6]}
2... Nc6 {[%clk 0:02:59.4]} 3. d4 {[%clk 0:02:59.2]} 3... cxd4 {[%clk
0:02:59.6]} 4. exd4 {[%clk 0:02:59.4]} 4... d5 {[%clk 0:03:00.2]} 5. Bb5 {[%clk
0:02:50.4]} 5... Nf6 {[%clk 0:02:57.2]} 6. O-O {[%clk 0:02:46.4]} 6... Bg4
{[%clk 0:02:49.4]} 7. h3 {[%clk 0:02:45.7]} 7... Bh5 {[%clk 0:02:48.7]} 8. g4
{[%clk 0:02:45.7]} 8... Bg6 {[%clk 0:02:48.1]} 9. Ne5 {[%clk 0:02:46.3]} 9...
Qb6 {[%clk 0:02:47.9]} 10. Nc3 {[%clk 0:02:01.1]} 10... a6 {[%clk 0:02:43.4]}
11. Bxc6+ {[%clk 0:01:58.1]} 11... bxc6 {[%clk 0:02:43]} 12. h4 {[%clk 0:01:50]}
12... h5 {[%clk 0:02:29.3]} 13. g5 {[%clk 0:01:49.9]} 13... Ne4 {[%clk
0:02:08.2]} 14. Nxg6 {[%clk 0:01:47.9]} 14... Nxc3 {[%clk 0:02:07.5]} 15. bxc3
{[%clk 0:01:42.6]} 15... fxg6 {[%clk 0:02:06.5]} 16. Re1 {[%clk 0:01:22.4]}
16... Kd7 {[%clk 0:01:41.9]} 17. Qe2 {[%clk 0:01:02.2]} 17... Qc7 {[%clk
0:01:15.8]} 18. Qe6+ {[%clk 0:00:56.9]} 18... Kd8 {[%clk 0:01:14.7]} 19. Rb1
{[%clk 0:00:51.4]} 19... Qd6 {[%clk 0:01:06.5]} 20. Qxd6+ {[%clk 0:00:46.3]}
20... exd6 {[%clk 0:01:06.3]} 21. Rb7 {[%clk 0:00:46.9]} 21... Rc8 {[%clk
0:00:51.5]} 22. Ra7 {[%clk 0:00:17.5]} 22... Rc7 {[%clk 0:00:48.6]} 23. Rxa6
{[%clk 0:00:17.9]} 23... Kd7 {[%clk 0:00:33.9]} 24. Ra8 {[%clk 0:00:17.8]} 24...
Rc8 {[%clk 0:00:33]} 25. Rxc8 {[%clk 0:00:17.7]} 25... Kxc8 {[%clk 0:00:33.1]}
26. Re8+ {[%clk 0:00:18.3]} 26... Kd7 {[%clk 0:00:33.9]} 27. Ra8 {[%clk
0:00:18.5]} 27... Rg8 {[%clk 0:00:27.5]} 28. a4 {[%clk 0:00:18.5]} 28... Ke7
{[%clk 0:00:27.3]} 29. a5 {[%clk 0:00:18.1]} 29... Kf7 {[%clk 0:00:28]} 30. a6
{[%clk 0:00:18.4]} 30... Be7 {[%clk 0:00:27.7]} 31. Rxg8 {[%clk 0:00:18]} 31...
Kxg8 {[%clk 0:00:28.4]} 32. a7 {[%clk 0:00:18.9]} 1-0

[Event "Late-Titled-Tuesday-Blitz-June-25-2024"]
[Site "Chess.com"]
[Date "2024.06.25"]
[Round "3"]
[White "stasOR4ik"]
[Black "Aryan_Tamadon"]
[Result "0-1"]
[WhiteElo "2452"]
[BlackElo "2644"]
[TimeControl "180+1"]
[EndTime "14:26:49 PDT"]
[Termination "Aryan_Tamadon won by resignation"]

1. e4 {[%clk 0:02:59.5]} 1... d5 {[%clk 0:03:00.5]} 2. exd5 {[%clk 0:02:58.9]}
2... Qxd5 {[%clk 0:03:01.4]} 3. Nf3 {[%clk 0:02:59.4]} 3... Nf6 {[%clk
0:03:01.7]} 4. Be2 {[%clk 0:02:59.7]} 4... Bg4 {[%clk 0:03:02.1]} 5. Nc3 {[%clk
0:02:59]} 5... Qd8 {[%clk 0:03:02.3]} 6. h3 {[%clk 0:02:59.5]} 6... Bh5 {[%clk
0:03:02.2]} 7. d4 {[%clk 0:02:59.5]} 7... e6 {[%clk 0:03:02.8]} 8. Bf4 {[%clk
0:02:59.2]} 8... Bb4 {[%clk 0:03:03]} 9. O-O {[%clk 0:02:59.5]} 9... O-O {[%clk
0:03:03.4]} 10. Bg5 {[%clk 0:02:58.6]} 10... Nbd7 {[%clk 0:03:01.2]} 11. Ne4
{[%clk 0:02:57.2]} 11... c6 {[%clk 0:02:59.8]} 12. Ne5 {[%clk 0:02:54.5]} 12...
Bxe2 {[%clk 0:02:47.3]} 13. Qxe2 {[%clk 0:02:52.2]} 13... Be7 {[%clk 0:02:47.3]}
14. Nxd7 {[%clk 0:02:43.1]} 14... Nxd7 {[%clk 0:02:44.6]} 15. Bxe7 {[%clk
0:02:35.5]} 15... Qxe7 {[%clk 0:02:45.5]} 16. c4 {[%clk 0:02:33.1]} 16... Rfd8
{[%clk 0:02:26.6]} 17. Rfd1 {[%clk 0:02:32.9]} 17... Nf6 {[%clk 0:02:19.2]} 18.
Nc3 {[%clk 0:02:20]} 18... Qb4 {[%clk 0:02:11.8]} 19. Rd2 {[%clk 0:02:16.9]}
19... Rd7 {[%clk 0:02:11.6]} 20. Rad1 {[%clk 0:02:16.1]} 20... Rad8 {[%clk
0:02:12.2]} 21. d5 {[%clk 0:02:08.9]} 21... exd5 {[%clk 0:02:04]} 22. cxd5
{[%clk 0:02:08.4]} 22... cxd5 {[%clk 0:02:01]} 23. a3 {[%clk 0:01:58.5]} 23...
Qc5 {[%clk 0:01:58.6]} 24. Rd4 {[%clk 0:01:54.3]} 24... h6 {[%clk 0:01:53.1]}
25. Qf3 {[%clk 0:01:50.2]} 25... Qb6 {[%clk 0:01:27.9]} 26. R1d2 {[%clk
0:01:49.4]} 26... Qc5 {[%clk 0:01:23]} 27. b4 {[%clk 0:01:47.6]} 27... Qc6
{[%clk 0:01:22]} 28. Ne2 {[%clk 0:01:41.4]} 28... Ne4 {[%clk 0:01:14.1]} 29.
R2d3 {[%clk 0:01:39.9]} 29... Rd6 {[%clk 0:01:06.4]} 30. Nf4 {[%clk 0:01:36.8]}
30... Rf6 {[%clk 0:00:59.3]} 31. Nxd5 {[%clk 0:01:13.2]} 31... Rxf3 {[%clk
0:00:50.8]} 32. Ne7+ {[%clk 0:01:13.4]} 32... Kh7 {[%clk 0:00:49.7]} 33. Nxc6
{[%clk 0:01:12.5]} 33... Rxd3 {[%clk 0:00:42.5]} 34. Rxd8 {[%clk 0:01:12.3]}
34... Rxd8 {[%clk 0:00:33.4]} 35. Nxd8 {[%clk 0:01:12.2]} 35... Nd6 {[%clk
0:00:34.1]} 36. a4 {[%clk 0:00:41.3]} 36... Kg8 {[%clk 0:00:33.2]} 37. b5 {[%clk
0:00:40.4]} 37... Kf8 {[%clk 0:00:29.5]} 38. a5 {[%clk 0:00:40.4]} 38... Ke8
{[%clk 0:00:27.6]} 39. Nxb7 {[%clk 0:00:40.6]} 39... Nxb7 {[%clk 0:00:26.9]} 40.
b6 {[%clk 0:00:41.1]} 40... a6 {[%clk 0:00:26.7]} 41. f4 {[%clk 0:00:39.5]}
41... Nxa5 {[%clk 0:00:27.6]} 42. Kf2 {[%clk 0:00:39.5]} 42... Kd7 {[%clk
0:00:27.6]} 0-1

[Event "Late-Titled-Tuesday-Blitz-June-25-2024"]
[Site "Chess.com"]
[Date "2024.06.25"]
[Round "3"]
[White "shirovin"]
[Black "IndianSchoolOfSuffering"]
[Result "0-1"]
[WhiteElo "2112"]
[BlackElo "2485"]
[TimeControl "180+1"]
[EndTime "14:26:50 PDT"]
[Termination "IndianSchoolOfSuffering won by checkmate"]

1. e4 {[%clk 0:03:00.9]} 1... e5 {[%clk 0:02:59.3]} 2. Nf3 {[%clk 0:02:59.8]}
2... Nc6 {[%clk 0:02:58.9]} 3. Bc4 {[%clk 0:03:00.1]} 3... Nf6 {[%clk
0:02:58.2]} 4. d3 {[%clk 0:02:58.1]} 4... h6 {[%clk 0:02:56.8]} 5. c3 {[%clk
0:02:57.7]} 5... d6 {[%clk 0:02:55.7]} 6. Nbd2 {[%clk 0:02:55.2]} 6... g5 {[%clk
0:02:47.8]} 7. O-O {[%clk 0:02:51.7]} 7... Bg7 {[%clk 0:02:46.8]} 8. d4 {[%clk
0:02:47.2]} 8... Qe7 {[%clk 0:02:45.7]} 9. d5 {[%clk 0:02:26]} 9... Nd8 {[%clk
0:02:41.8]} 10. Bb5+ {[%clk 0:02:25.4]} 10... Bd7 {[%clk 0:02:39.8]} 11. Qa4
{[%clk 0:02:22]} 11... O-O {[%clk 0:02:32.8]} 12. Bxd7 {[%clk 0:02:20.7]} 12...
Nxd7 {[%clk 0:02:32]} 13. Nc4 {[%clk 0:02:02.4]} 13... f5 {[%clk 0:02:24.4]} 14.
exf5 {[%clk 0:02:00]} 14... Rxf5 {[%clk 0:02:24]} 15. Ne3 {[%clk 0:02:00.4]}
15... Rf8 {[%clk 0:02:21.1]} 16. Qc2 {[%clk 0:01:59.1]} 16... Qf7 {[%clk
0:02:17.8]} 17. Bd2 {[%clk 0:01:50.8]} 17... a5 {[%clk 0:02:10.7]} 18. b3 {[%clk
0:01:46.5]} 18... b6 {[%clk 0:02:07.3]} 19. a3 {[%clk 0:01:45.8]} 19... Nf6
{[%clk 0:02:02.9]} 20. b4 {[%clk 0:01:32.8]} 20... Nxd5 {[%clk 0:01:57.5]} 21.
bxa5 {[%clk 0:01:24.8]} 21... Rxa5 {[%clk 0:01:31.6]} 22. c4 {[%clk 0:01:06.8]}
22... Nxe3 {[%clk 0:01:18.6]} 23. fxe3 {[%clk 0:01:06.1]} 23... Ra8 {[%clk
0:01:11.9]} 24. Nxg5 {[%clk 0:01:01.6]} 24... hxg5 {[%clk 0:01:05.4]} 25. Rxf7
{[%clk 0:01:00.1]} 25... Rxf7 {[%clk 0:01:06]} 26. a4 {[%clk 0:00:50]} 26... Ne6
{[%clk 0:01:05]} 27. a5 {[%clk 0:00:43.4]} 27... bxa5 {[%clk 0:01:04.5]} 28.
Rxa5 {[%clk 0:00:42.3]} 28... Raf8 {[%clk 0:01:02.1]} 29. h3 {[%clk 0:00:40.5]}
29... Rf1+ {[%clk 0:00:57.1]} 30. Kh2 {[%clk 0:00:38.9]} 30... R1f2 {[%clk
0:00:57.4]} 31. Qd3 {[%clk 0:00:34.9]} 31... Nc5 {[%clk 0:00:40.4]} 32. Qd5+
{[%clk 0:00:34.3]} 32... Kh8 {[%clk 0:00:36]} 33. Ra7 {[%clk 0:00:31.6]} 33...
e4 {[%clk 0:00:29.3]} 34. Bb4 {[%clk 0:00:19.3]} 34... Be5+ {[%clk 0:00:28.6]}
35. Kg1 {[%clk 0:00:14.9]} 35... Rf1# {[%clk 0:00:29.5]} 0-1